bitfinex-derivatives/quotes_BTCF0:USTF0_20210105
["timestamp","ask_amount","ask_price","bid_price","bid_amount"]
[1609823281643,5.2126,31331.0,31297.0,4.63659]
[1609823281843,5.2126,31331.0,31306.0,0.1154]
[1609823282044,0.10485,31342.0,31306.0,0.1154]
[1609823282246,4.7784,31319.0,31306.0,0.1154]
[1609823282443,4.7784,31319.0,31306.0,0.0307]
[1609823282644,4.7784,31319.0,31306.0,0.0116]
[1609823282843,4.7784,31319.0,31297.0,0.10979]
[1609823283444,0.13632608,31298.0,31297.0,0.10979]
[1609823284749,4.4765,31301.0,31297.0,0.10979]
[1609823285447,0.13632608,31298.0,31290.0,0.11414]
[1609823287351,0.24498608,31298.0,31276.0,0.13632608]
[1609823287550,0.10866,31298.0,31276.0,0.13632608]
[1609823287950,0.10866,31298.0,31275.0,4.3052]
[1609823288552,4.4765,31301.0,31275.0,4.3052]
[1609823288753,4.4765,31301.0,31275.0,4.40817]
[1609823289453,0.13632608,31298.0,31290.0,0.13632608]
[1609823291458,0.13632608,31298.0,31297.0,0.13632608]
[1609823291658,0.13632608,31298.0,31297.0,0.26230608]
[1609823292757,0.291,31311.0,31297.0,0.12598]
[1609823293658,0.13632608,31298.0,31297.0,0.12598]
[1609823295661,0.291,31311.0,31297.0,0.12598]
[1609823295662,0.291,31311.0,31297.0,4.95488]
[1609823296061,0.12333,31316.0,31297.0,4.95488]
[1609823296263,0.12333,31316.0,31310.0,0.13632608]
[1609823296462,0.13632608,31320.0,31312.0,4.1172]
[1609823297364,0.2885,31329.0,31312.0,4.1172]
[1609823297762,0.2885,31329.0,31312.0,4.24644]
[1609823298163,0.2885,31329.0,31328.0,0.13632608]
[1609823298563,0.2885,31329.0,31328.0,0.24505608]
[1609823298763,0.2885,31329.0,31328.0,4.73925608]
[1609823300165,0.56698379,31335.0,31328.0,4.73925608]
[1609823300567,0.13632608,31338.0,31328.0,4.73925608]
[1609823301065,0.13632608,31338.0,31328.0,0.10873]
[1609823301465,0.13632608,31338.0,31312.0,4.42224]
[1609823301666,0.29388608,31338.0,31312.0,0.12924]
[1609823301867,3.9997,31334.0,31312.0,0.12924]
[1609823302165,0.13632608,31313.0,31312.0,0.12924]
[1609823302767,0.13632608,31313.0,31305.0,0.11844]
[1609823302967,0.13632608,31313.0,31303.0,4.8186]
[1609823304168,0.13632608,31313.0,31310.0,0.13632608]
[1609823304368,0.10136,31324.0,31310.0,0.25485608]
[1609823306272,0.13632608,31313.0,31310.0,0.25485608]
[1609823306672,0.10136,31324.0,31310.0,0.25485608]
[1609823307173,0.10136,31324.0,31310.0,3.85275608]
[1609823308173,0.10136,31324.0,31323.0,0.13632608]
[1609823308374,0.13632608,31330.0,31323.0,0.13632608]
[1609823310275,0.13632608,31330.0,31329.0,0.13632608]
[1609823311276,0.13632608,31330.0,31319.0,0.12021]
[1609823312178,0.12909,31331.0,31324.0,0.13632608]
[1609823312378,0.2977,31333.0,31324.0,0.13632608]
[1609823314285,0.13632608,31326.0,31324.0,0.13632608]
[1609823314485,0.1074,31331.0,31324.0,0.13632608]
[1609823316187,0.13632608,31330.0,31328.0,0.13632608]
[1609823317086,0.13632608,31330.0,31321.0,3.9181]
[1609823317687,0.13632608,31330.0,31319.0,0.12021]
[1609823318088,0.13632608,31330.0,31311.0,4.4019]
[1609823318290,0.1074,31331.0,31328.0,0.13632608]
[1609823318690,0.1074,31331.0,31317.0,0.15137]
[1609823319588,0.2977,31333.0,31311.0,4.4019]
[1609823320188,0.13632608,31320.0,31311.0,4.4019]
[1609823320389,0.25046608,31320.0,31307.0,0.13632608]
[1609823321291,0.25046608,31320.0,31300.0,5.2906]
[1609823322191,0.11414,31320.0,31306.0,0.13632608]
[1609823322391,4.5385,31319.0,31286.0,4.6052]
[1609823322792,0.11414,31320.0,31285.0,2.08770703]
[1609823322992,0.11414,31320.0,31289.0,0.43968]
[1609823323192,0.11414,31320.0,31297.0,4.1057]
[1609823324192,0.11414,31320.0,31304.0,0.13632608]
[1609823324393,0.11414,31320.0,31304.0,0.5422]
[1609823325394,0.57753364,31327.0,31304.0,0.5422]
[1609823325996,0.57753364,31327.0,31296.0,0.10284]
[1609823326196,0.13632608,31299.0,31298.0,0.13632608]
[1609823326896,0.13632608,31299.0,31296.0,0.10284]
[1609823327298,0.13632608,31299.0,31289.0,0.14038]
[1609823328097,0.13632608,31299.0,31280.0,5.83895257]
[1609823328297,0.13632608,31288.0,31283.0,0.13632608]
[1609823328900,0.13632608,31288.0,31285.0,4.8498]
[1609823330401,0.16077,31295.0,31285.0,4.8498]
[1609823330602,0.16077,31295.0,31283.0,0.13632608]
[1609823331202,0.16077,31295.0,31280.0,2.09085257]
[1609823331405,0.16077,31295.0,31276.0,0.10615]
[1609823332502,0.16077,31295.0,31267.0,3.7366]
[1609823334007,5.0498,31296.0,31267.0,3.7366]
[1609823334207,0.12299,31295.0,31267.0,3.7366]
[1609823334407,0.12299,31295.0,31267.0,0.10052]
[1609823334709,0.12299,31295.0,31290.0,0.13632608]
[1609823335109,0.12299,31295.0,31275.0,0.12832]
[1609823335311,0.12299,31295.0,31282.0,4.0868]
[1609823335711,0.12299,31295.0,31282.0,4.20592]
[1609823336716,0.13632608,31294.0,31286.0,0.13632608]
[1609823338219,0.57836322,31303.0,31282.0,0.11912]
[1609823338220,0.12529,31296.0,31282.0,0.11912]
[1609823338419,0.12529,31296.0,31275.0,0.12832]
[1609823338420,4.1084,31291.0,31275.0,0.12832]
[1609823338619,4.9543,31282.0,31275.0,0.12832]
[1609823338818,0.12529,31296.0,31275.0,0.12832]
[1609823339025,0.13632608,31276.0,31275.0,0.12832]
[1609823339419,0.13632608,31276.0,31271.0,0.13632608]
[1609823339824,0.13632608,31276.0,31267.0,0.10052]
[1609823339825,4.1028,31272.0,31267.0,0.10052]
[1609823340018,4.1028,31272.0,31259.0,2.09852827]
[1609823340920,4.1028,31272.0,31266.0,0.13632608]
[1609823341319,4.1028,31272.0,31259.0,2.09852827]
[1609823342920,4.1028,31272.0,31261.0,0.13632608]
[1609823343320,4.1028,31272.0,31259.0,2.09852827]
[1609823343521,0.12039,31275.0,31259.0,2.09852827]
[1609823343719,4.4868,31260.0,31259.0,2.09852827]
[1609823344020,4.4868,31260.0,31259.0,1.88032827]
[1609823345021,4.4868,31260.0,31248.0,0.48766104]
[1609823345223,4.4868,31260.0,31249.0,2.30082542]
[1609823345422,0.13632608,31250.0,31249.0,2.30082542]
[1609823345825,5.1919,31247.0,31209.0,1.88174922]
[1609823346024,0.23852608,31250.0,31209.0,1.88174922]
[1609823346225,3.6393,31234.0,31218.0,0.45434]
[1609823347623,0.15503,31238.0,31218.0,0.45434]
[1609823348425,0.15503,31238.0,31218.0,0.15944]
[1609823348626,0.15503,31238.0,31220.0,4.4243]
[1609823349025,0.1022,31250.0,31220.0,4.5404]
[1609823349225,0.58253572,31250.0,31220.0,4.5404]
[1609823349428,0.13632608,31244.0,31237.0,0.13632608]
[1609823349625,0.58253572,31250.0,31237.0,0.13632608]
[1609823349825,0.1022,31250.0,31237.0,0.13632608]
[1609823350425,0.718,31249.0,31227.0,5.25259]
[1609823350627,0.1022,31250.0,31227.0,0.11089]
[1609823350825,5.0507,31248.0,31227.0,0.11089]
[1609823351028,5.14827,31248.0,31227.0,0.11089]
[1609823351428,0.13632608,31231.0,31227.0,0.11089]
[1609823351627,0.1352,31239.0,31227.0,0.11089]
[1609823353541,0.1352,31239.0,31238.0,0.13632608]
[1609823353733,0.09757,31248.0,31238.0,4.70272608]
[1609823355640,0.13632608,31245.0,31238.0,4.70272608]
[1609823355937,0.13632608,31245.0,31238.0,0.13632608]
[1609823356641,0.13632608,31245.0,31234.0,0.14081]
[1609823357542,0.13632608,31235.0,31234.0,0.14081]
[1609823357741,0.13632608,31235.0,31229.0,4.5493]
[1609823359542,0.13632608,31230.0,31229.0,4.5493]
[1609823361143,0.11934,31238.0,31229.0,4.5493]
[1609823361543,0.11934,31238.0,31237.0,3.94322608]
[1609823362844,0.09757,31248.0,31237.0,3.94322608]
[1609823363044,0.2971,31262.0,31237.0,3.94322608]
[1609823363446,0.2971,31262.0,31237.0,0.13632608]
[1609823363646,0.13632608,31252.0,31251.0,3.8649]
[1609823363845,0.29410608,31252.0,31251.0,3.8649]
[1609823364247,0.15778,31252.0,31251.0,3.8649]
[1609823365547,0.15778,31252.0,31251.0,4.00122608]
[1609823366248,0.15778,31252.0,31251.0,0.13632608]
[1609823366447,0.15778,31252.0,31242.0,4.9124]
[1609823366848,0.15778,31252.0,31228.0,0.13536]
[1609823368248,0.15778,31252.0,31223.0,4.293]
[1609823368651,0.13632608,31238.0,31234.0,0.13632608]
[1609823368849,0.15778,31252.0,31234.0,0.13632608]
[1609823369049,5.1602,31261.0,31234.0,0.13632608]
[1609823369549,5.1602,31261.0,31229.0,0.10853]
[1609823370352,0.2971,31262.0,31229.0,0.10853]
[1609823370554,0.2971,31262.0,31234.0,4.8869]
[1609823372656,0.13632608,31235.0,31234.0,4.8869]
[1609823372855,0.2971,31262.0,31233.0,0.13632608]
[1609823373055,0.11701,31244.0,31233.0,0.13632608]
[1609823374057,0.12441,31253.0,31233.0,0.13632608]
[1609823374257,5.10361,31253.0,31227.0,0.10986]
[1609823374758,5.10361,31253.0,31232.0,0.13632608]
[1609823375058,5.10361,31253.0,31227.0,0.10986]
[1609823375358,0.12441,31253.0,31227.0,0.10986]
[1609823375761,0.12441,31253.0,31228.0,5.0487]
[1609823376758,0.13632608,31231.0,31228.0,5.0487]
[1609823377160,0.13632608,31231.0,31227.0,0.10986]
[1609823377362,0.13632608,31231.0,31226.0,0.13632608]
[1609823378864,0.13632608,31231.0,31230.0,0.13632608]
[1609823379463,0.13632608,31231.0,31227.0,0.10877]
[1609823382966,0.13632608,31231.0,31220.0,0.1161]
[1609823383167,0.13632608,31231.0,31211.0,0.09745]
[1609823383369,0.13632608,31231.0,31201.0,0.2943]
[1609823383568,4.2675,31220.0,31201.0,0.2943]
[1609823383770,3.9768,31215.0,31185.0,2.1055695]
[1609823384769,0.13632608,31194.0,31188.0,0.13632608]
[1609823384969,0.11002,31209.0,31188.0,0.13632608]
[1609823385170,0.11002,31209.0,31188.0,0.29454608]
[1609823386772,0.13632608,31201.0,31197.0,0.13632608]
[1609823387772,0.11002,31209.0,31197.0,0.13632608]
[1609823388876,0.11002,31209.0,31204.0,0.13632608]
[1609823389075,0.11002,31209.0,31193.0,4.9517]
[1609823389474,0.11002,31209.0,31188.0,0.15822]
[1609823389977,5.1843,31218.0,31188.0,0.15822]
[1609823390177,0.11382,31209.0,31183.0,0.2823]
[1609823390776,0.13632608,31197.0,31193.0,0.13632608]
[1609823391177,0.13632608,31197.0,31193.0,4.70072608]
[1609823391976,0.13632608,31197.0,31193.0,4.5644]
[1609823393978,0.13632608,31197.0,31189.0,0.13632608]
[1609823394879,0.13632608,31190.0,31189.0,0.13632608]
[1609823395580,0.13632608,31190.0,31176.0,4.7384]
[1609823396782,0.11067,31195.0,31179.0,0.13632608]
[1609823397182,0.11067,31195.0,31169.0,0.11525]
[1609823397782,0.11067,31195.0,31176.0,3.828]
[1609823398182,0.11067,31195.0,31176.0,3.97851]
[1609823398483,0.10063,31202.0,31176.0,3.97851]
[1609823398684,0.2884,31208.0,31176.0,3.97851]
[1609823399283,0.8684,31208.0,31176.0,3.97851]
[1609823400486,0.2884,31208.0,31176.0,0.15051]
[1609823400687,0.2884,31208.0,31169.0,0.11525]
[1609823400888,0.13632608,31176.0,31175.0,0.13632608]
[1609823401289,0.11158,31183.0,31175.0,0.13632608]
[1609823402293,4.294,31203.0,31175.0,0.13632608]
[1609823402691,0.2884,31208.0,31175.0,0.13632608]
[1609823402892,0.2884,31208.0,31179.0,4.8743]
[1609823403093,0.2884,31208.0,31179.0,5.03446]
[1609823404897,0.2884,31208.0,31193.0,0.13632608]
[1609823405097,0.2884,31208.0,31179.0,5.03446]
[1609823406797,0.42472608,31208.0,31207.0,0.13632608]
[1609823406998,0.42472608,31208.0,31192.0,0.11241]
[1609823408001,0.23512608,31208.0,31192.0,0.11241]
[1609823408802,0.0988,31208.0,31200.0,0.13632608]
[1609823409204,0.0988,31208.0,31192.0,0.11241]
[1609823410907,0.13632608,31193.0,31192.0,0.11241]
[1609823412006,0.0988,31208.0,31192.0,0.11241]
[1609823412206,0.0988,31208.0,31189.0,0.13632608]
[1609823412808,0.0988,31208.0,31202.0,0.13632608]
[1609823413007,0.0988,31208.0,31186.0,0.10744]
[1609823414909,0.13632608,31202.0,31201.0,0.13632608]
[1609823415110,0.0988,31208.0,31201.0,0.13632608]
[1609823416713,0.0988,31208.0,31197.0,0.15351]
[1609823418715,0.59199902,31221.0,31197.0,0.15351]
[1609823418914,0.13632608,31208.0,31207.0,0.13632608]
[1609823419415,0.10256,31217.0,31207.0,0.13632608]
[1609823420015,0.59199902,31221.0,31214.0,5.2527]
[1609823420417,0.01929554,31222.0,31214.0,5.2527]
[1609823420617,0.01929554,31222.0,31214.0,5.41043]
[1609823421015,0.01929554,31222.0,31221.0,0.13632608]
[1609823421217,0.01940829,31234.0,31221.0,0.25122608]
[1609823421416,0.01940829,31234.0,31228.0,3.9327]
[1609823422025,0.96099836,31242.0,31228.0,3.9327]
[1609823422026,0.59697274,31241.0,31228.0,4.06382]
[1609823422718,0.01943764,31249.0,31228.0,4.06382]
[1609823422917,0.13632608,31231.0,31230.0,0.13632608]
[1609823423518,0.13632608,31231.0,31228.0,0.13112]
[1609823424620,0.13632608,31231.0,31228.0,0.69992]
[1609823424826,0.13632608,31231.0,31230.0,4.4216]
[1609823425021,0.10675,31241.0,31230.0,4.4216]
[1609823425420,0.10675,31241.0,31238.0,0.13632608]
[1609823425620,0.10675,31241.0,31240.0,0.6172]
[1609823426024,0.01943876,31247.0,31240.0,0.6172]
[1609823426223,0.67513145,31248.0,31240.0,0.6172]
[1609823426224,0.5969477,31246.0,31240.0,0.6172]
[1609823426417,0.5969477,31246.0,31228.0,0.13112]
[1609823426823,0.5969477,31246.0,31242.0,3.9041]
[1609823427024,0.09755,31248.0,31242.0,3.9041]
[1609823427223,0.01942471,31256.0,31242.0,3.9041]
[1609823427430,0.13632608,31253.0,31247.0,0.13632608]
[1609823427618,0.01942471,31256.0,31247.0,0.13632608]
[1609823427920,0.59647067,31258.0,31247.0,0.24285608]
[1609823428421,0.59647067,31258.0,31257.0,4.2533]
[1609823428623,0.73988996,31265.0,31257.0,3.9187]
[1609823428821,0.59638996,31265.0,31257.0,3.9187]
[1609823429423,0.59638996,31265.0,31264.0,0.13632608]
[1609823430022,0.5962451,31269.0,31264.0,0.13632608]
[1609823430222,0.5962451,31269.0,31266.0,5.242]
[1609823431023,0.69215944,31271.0,31266.0,5.242]
[1609823431223,0.69215944,31271.0,31264.0,0.13632608]
[1609823431423,0.69215944,31271.0,31270.0,3.8163]
[1609823433527,0.15776,31278.0,31270.0,3.95262608]
[1609823433727,0.68893129,31283.0,31270.0,4.06400608]
[1609823434128,1.07156461,31293.0,31270.0,4.06400608]
[1609823434129,0.96815276,31287.0,31270.0,4.06400608]
[1609823435129,0.68885276,31287.0,31270.0,4.06400608]
[1609823435531,0.13632608,31285.0,31283.0,0.13632608]
[1609823436330,0.13632608,31285.0,31270.0,0.11138]
[1609823436531,0.13632608,31285.0,31273.0,4.7725]
[1609823437432,0.13632608,31274.0,31273.0,4.7725]
[1609823440636,0.15359,31280.0,31273.0,4.7725]
[1609823441439,0.13632608,31274.0,31273.0,4.7725]
[1609823442741,0.13632608,31274.0,31271.0,0.13632608]
[1609823443644,0.15359,31280.0,31264.0,4.4099]
[1609823444146,0.69004807,31284.0,31264.0,4.4099]
[1609823444343,0.69004807,31284.0,31272.0,0.13632608]
[1609823444945,0.69004807,31284.0,31277.0,4.8693]
[1609823445345,0.69004807,31284.0,31263.0,0.14445]
[1609823445545,0.69004807,31284.0,31256.0,0.10419]
[1609823445746,0.69004807,31284.0,31255.0,4.6272]
[1609823446246,0.13632608,31260.0,31259.0,0.13632608]
[1609823446446,0.13632608,31260.0,31201.0,0.1489]
[1609823446650,0.13632608,31260.0,31240.0,5.2844]
[1609823448253,0.13632608,31260.0,31259.0,0.13632608]
[1609823448850,0.13632608,31260.0,31240.0,5.14821608]
[1609823449053,0.13632608,31260.0,31248.0,0.13612]
[1609823449855,0.13632608,31260.0,31249.0,4.412]
[1609823450255,0.10677,31267.0,31249.0,4.412]
[1609823452053,0.6840033,31273.0,31249.0,4.412]
[1609823452255,0.68405337,31270.0,31249.0,4.412]
[1609823452453,0.68405337,31270.0,31254.0,0.13632608]
[1609823452657,0.68405337,31270.0,31249.0,4.412]
[1609823452859,0.68405337,31270.0,31248.0,0.13612]
[1609823453058,0.68408566,31271.0,31248.0,0.13612]
[1609823453258,5.1215,31262.0,31248.0,0.13612]
[1609823453459,5.27145,31262.0,31248.0,0.13612]
[1609823454061,5.27145,31262.0,31231.0,4.9526]
[1609823454362,5.27145,31262.0,31237.0,0.13632608]
[1609823454560,5.27145,31262.0,31237.0,0.24662608]
[1609823455161,5.27145,31262.0,31237.0,0.1103]
[1609823455562,5.27145,31262.0,31231.0,4.9526]
[1609823456462,5.27145,31262.0,31233.0,0.13632608]
[1609823456663,5.27145,31262.0,31231.0,4.9526]
[1609823457562,5.75160365,31262.0,31231.0,4.9526]
[1609823457963,0.63010365,31262.0,31230.0,0.146]
[1609823458264,4.7367,31247.0,31230.0,0.146]
[1609823458463,0.13632608,31232.0,31230.0,0.146]
[1609823460565,0.13632608,31232.0,31228.0,0.13632608]
[1609823465770,0.13632608,31232.0,31190.0,2.03220825]
[1609823465971,0.13632608,31232.0,31205.0,4.7026]
[1609823466171,0.13632608,31232.0,31205.0,4.82798]
[1609823466371,0.13632608,31223.0,31222.0,0.13632608]
[1609823466971,0.13632608,31223.0,31205.0,4.82798]
[1609823468272,0.13632608,31223.0,31205.0,0.12538]
[1609823468471,0.13958,31240.0,31219.0,0.13632608]
[1609823468672,4.8418,31228.0,31219.0,0.28320608]
[1609823470373,0.13632608,31221.0,31219.0,0.28320608]
[1609823471175,0.13632608,31221.0,31219.0,0.14688]
[1609823471374,3.76942608,31221.0,31219.0,0.14688]
[1609823474077,3.76942608,31221.0,31206.0,0.13632608]
[1609823474277,3.76942608,31221.0,31205.0,0.12538]
[1609823474477,0.13632608,31206.0,31205.0,0.12538]
[1609823474877,0.13632608,31206.0,31201.0,0.13632608]
[1609823475478,0.13632608,31206.0,31192.0,5.2922]
[1609823476180,0.13734,31226.0,31181.0,2.07251783]
[1609823476378,4.93,31212.0,31181.0,2.20187783]
[1609823476579,0.13157,31217.0,31181.0,2.20187783]
[1609823476779,0.13157,31217.0,31181.0,0.12936]
[1609823476980,4.8194,31207.0,31181.0,0.12936]
[1609823478581,4.8194,31207.0,31185.0,0.13632608]
[1609823480684,4.8194,31207.0,31181.0,0.12936]
[1609823481088,0.2825,31213.0,31181.0,0.12936]
[1609823481290,0.2825,31213.0,31183.0,5.2689]
[1609823482689,0.2825,31213.0,31212.0,0.13632608]
[1609823483089,0.2825,31213.0,31211.0,4.65459]
[1609823484590,0.13632608,31212.0,31211.0,4.65459]
[1609823484891,0.13632608,31212.0,31181.0,0.12936]
[1609823485091,3.91682608,31212.0,31192.0,4.201]
[1609823485290,3.91682608,31212.0,31192.0,4.32644]
[1609823486495,3.91682608,31212.0,31192.0,3.91754]
[1609823486694,0.13632608,31193.0,31192.0,3.91754]
[1609823486896,0.13632608,31193.0,31192.0,0.12544]
[1609823488597,0.13632608,31193.0,31192.0,4.29454]
[1609823488797,0.15141,31209.0,31192.0,4.29454]
[1609823489299,0.57525778,31212.0,31192.0,4.29454]
[1609823490000,0.57525778,31212.0,31192.0,0.12544]
[1609823490199,3.7467,31208.0,31180.0,3.9763]
[1609823490600,3.7467,31208.0,31183.0,0.13632608]
[1609823490800,3.7467,31208.0,31183.0,0.24451608]
[1609823491101,3.7467,31208.0,31183.0,0.10819]
[1609823492605,0.13632608,31190.0,31183.0,0.24451608]
[1609823492804,3.7467,31208.0,31183.0,0.24451608]
[1609823493004,0.57525778,31212.0,31183.0,0.24451608]
[1609823493205,0.57525778,31212.0,31187.0,4.0936]
[1609823494707,0.13632608,31193.0,31192.0,0.13632608]
[1609823495507,0.13632608,31193.0,31183.0,0.10819]
[1609823496107,0.13632608,31193.0,31175.0,4.9026]
[1609823496709,0.13632608,31181.0,31180.0,0.13632608]
[1609823497009,0.13632608,31181.0,31152.0,2.01080937]
[1609823497210,4.5695,31176.0,31152.0,2.01080937]
[1609823497814,4.5695,31176.0,31147.0,2.00945966]
[1609823498611,4.5695,31176.0,31144.0,4.6017]
[1609823498811,4.5695,31176.0,31156.0,0.13632608]
[1609823499010,4.5695,31176.0,31156.0,0.25597608]
[1609823500611,0.10005,31187.0,31156.0,0.25597608]
[1609823500812,0.13632608,31157.0,31156.0,0.25597608]
[1609823501913,0.10157,31171.0,31156.0,0.25597608]
[1609823502514,5.3745,31182.0,31156.0,0.25597608]
[1609823502714,0.13632608,31164.0,31163.0,0.13632608]
[1609823502917,5.07932608,31164.0,31156.0,0.11965]
[1609823504116,5.07932608,31164.0,31139.0,5.1321]
[1609823504717,4.943,31164.0,31154.0,0.13632608]
[1609823504916,0.14388,31171.0,31153.0,0.09886]
[1609823505116,4.2086,31155.0,31153.0,0.09886]
[1609823505716,0.12447,31164.0,31153.0,0.09886]
[1609823505916,0.12447,31164.0,31145.0,4.1765]
[1609823506517,0.12447,31164.0,31145.0,3.7865]
[1609823507617,0.12447,31164.0,31145.0,3.5665]
[1609823508020,0.12447,31164.0,31144.0,0.14449]
[1609823508219,4.2775,31162.0,31144.0,0.14449]
[1609823508819,4.2775,31162.0,31146.0,0.13632608]
[1609823510723,0.13632608,31147.0,31146.0,0.13632608]
[1609823512123,4.2775,31162.0,31146.0,0.13632608]
[1609823512722,0.13632608,31147.0,31146.0,0.13632608]
[1609823513923,0.13632608,31147.0,31144.0,0.14449]
[1609823514123,0.13632608,31147.0,31133.0,3.6718]
[1609823514324,0.13632608,31147.0,31103.0,2.18611169]
[1609823514525,0.13632608,31147.0,31105.0,5.3213]
[1609823514724,0.13632608,31135.0,31134.0,0.13632608]
[1609823514925,4.50742608,31135.0,31110.0,3.7178]
[1609823515525,4.3711,31135.0,31110.0,3.7178]
[1609823516528,0.13319,31150.0,31103.0,2.18611169]
[1609823516729,4.7961,31130.0,31103.0,0.14937]
[1609823516927,0.14941,31142.0,31113.0,0.13632608]
[1609823517127,4.3154,31122.0,31113.0,0.13126]
[1609823517527,0.15563,31134.0,31113.0,0.13126]
[1609823518733,0.14941,31142.0,31113.0,0.13126]
[1609823518931,0.14941,31142.0,31114.0,0.13632608]
[1609823519129,0.14941,31142.0,31111.0,4.88248608]
[1609823519629,0.14941,31142.0,31103.0,0.14937]
[1609823519830,4.6651,31137.0,31103.0,0.14937]
[1609823520030,0.48209637,31136.0,31103.0,0.00037]
[1609823520932,0.48209637,31136.0,31108.0,0.13632608]
[1609823521331,4.6651,31137.0,31103.0,0.00037]
[1609823521731,4.6651,31137.0,31087.0,4.002]
[1609823521931,4.6651,31137.0,31090.0,2.03671807]
[1609823522330,4.6651,31137.0,31090.0,2.16647807]
[1609823522731,4.6651,31137.0,31090.0,0.12976]
[1609823522930,0.13632608,31099.0,31098.0,0.13632608]
[1609823523131,5.0393,31133.0,31098.0,3.77592608]
[1609823523332,0.14941,31142.0,31098.0,0.28044608]
[1609823523533,0.2775,31149.0,31104.0,4.2093]
[1609823524833,0.13632608,31105.0,31104.0,4.2093]
[1609823525033,0.13632608,31105.0,31099.0,5.1373]
[1609823525233,0.13632608,31105.0,31098.0,0.28044608]
[1609823525433,0.13632608,31105.0,31098.0,0.14412]
[1609823526933,0.13632608,31099.0,31098.0,0.14412]
[1609823527936,0.1405,31114.0,31098.0,0.14412]
[1609823528137,0.1405,31114.0,31100.0,4.4307]
[1609823528546,0.1405,31114.0,31098.0,0.14412]
[1609823528738,0.1405,31114.0,31090.0,0.12976]
[1609823528939,4.667,31135.0,31113.0,0.13632608]
[1609823529139,0.48223758,31127.0,31113.0,0.25727608]
[1609823529740,0.2936,31142.0,31113.0,0.25727608]
[1609823529940,0.70707388,31150.0,31113.0,0.25727608]
[1609823530147,0.70707388,31150.0,31121.0,5.0331]
[1609823530346,0.70707388,31150.0,31121.0,5.18434]
[1609823530742,0.13319,31150.0,31121.0,5.18434]
[1609823530946,0.13632608,31134.0,31133.0,0.13632608]
[1609823531349,0.13632608,31134.0,31133.0,3.92072608]
[1609823531543,0.2751,31160.0,31133.0,3.92072608]
[1609823531841,0.2751,31160.0,31133.0,0.15605]
[1609823532042,0.2751,31160.0,31134.0,4.5979]
[1609823532643,0.1017,31163.0,31134.0,4.5979]
[1609823533043,0.57247125,31172.0,31134.0,4.5979]
[1609823533346,0.295,31174.0,31134.0,4.5979]
[1609823533746,0.295,31174.0,31148.0,3.6641]
[1609823533944,0.295,31174.0,31149.0,0.13632608]
[1609823534145,0.295,31174.0,31154.0,4.5892]
[1609823535947,0.13632608,31155.0,31154.0,4.5892]
[1609823536351,0.295,31174.0,31154.0,4.5892]
[1609823536749,0.295,31174.0,31149.0,0.12893]
[1609823538050,0.13632608,31150.0,31149.0,0.12893]
[1609823538853,0.13632608,31150.0,31145.0,5.3135]
[1609823539453,0.13632608,31150.0,31133.0,0.15605]
[1609823539651,0.13632608,31150.0,31131.0,4.9434]
[1609823539951,0.13632608,31135.0,31134.0,0.13632608]
[1609823540151,0.13632608,31135.0,31131.0,4.9434]
[1609823540551,0.13632608,31135.0,31113.0,0.12095]
[1609823540751,0.13632608,31135.0,31116.0,5.2146]
[1609823541953,0.13632608,31125.0,31116.0,5.2146]
[1609823544157,0.15394,31145.0,31116.0,5.2146]
[1609823544757,0.13632608,31117.0,31116.0,5.2146]
[1609823544958,0.15394,31145.0,31116.0,5.2146]
[1609823545459,0.15394,31145.0,31113.0,0.12095]
[1609823545659,0.15394,31145.0,31122.0,3.6206]
[1609823545858,0.15394,31145.0,31122.0,0.12584]
[1609823546058,0.15394,31145.0,31128.0,3.9305]
[1609823546258,0.2854,31151.0,31128.0,3.9305]
[1609823546459,0.13495,31152.0,31128.0,3.9305]
[1609823546661,0.13632608,31137.0,31130.0,0.13632608]
[1609823546860,0.57498597,31162.0,31130.0,0.13632608]
[1609823547060,0.57498597,31162.0,31130.0,0.26207608]
[1609823547262,0.5746583,31161.0,31130.0,0.26207608]
[1609823548165,0.2783,31163.0,31130.0,0.26207608]
[1609823548764,0.13632608,31141.0,31136.0,0.13632608]
[1609823548964,0.13632608,31141.0,31130.0,0.12575]
[1609823549966,0.2783,31163.0,31130.0,0.12575]
[1609823550367,0.2783,31163.0,31143.0,3.7581]
[1609823550569,0.2783,31163.0,31143.0,3.87295]
[1609823550767,0.13632608,31146.0,31143.0,3.87295]
[1609823550967,0.2783,31163.0,31143.0,0.11485]
[1609823551368,0.57568324,31173.0,31143.0,0.11485]
[1609823551569,0.69078152,31175.0,31143.0,0.11485]
[1609823551570,0.01942498,31174.0,31148.0,4.4123]
[1609823551974,0.98776797,31176.0,31148.0,4.4123]
[1609823551975,0.2952,31176.0,31148.0,4.4123]
[1609823552376,0.01942131,31182.0,31143.0,0.11485]
[1609823552574,0.01942131,31182.0,31156.0,5.0986]
[1609823552773,0.13632608,31167.0,31160.0,0.13632608]
[1609823552974,0.13632608,31167.0,31162.0,3.7907]
[1609823553575,0.09986,31185.0,31156.0,0.10366]
[1609823554674,0.09986,31185.0,31172.0,0.13632608]
[1609823554977,0.69928239,31185.0,31172.0,0.13632608]
[1609823555575,0.69928239,31185.0,31168.0,0.1376]
[1609823556778,0.13632608,31169.0,31168.0,0.1376]
[1609823556981,0.13632608,31169.0,31163.0,4.4163]
[1609823557179,0.13632608,31169.0,31156.0,0.10366]
[1609823557979,0.13632608,31169.0,31161.0,5.0567]
[1609823558179,0.15115,31175.0,31161.0,5.20561]
[1609823558379,0.11937698,31185.0,31161.0,5.20561]
[1609823558780,0.09986,31185.0,31161.0,5.20561]
[1609823558980,0.01951524,31186.0,31161.0,5.20561]
[1609823559381,0.01951524,31186.0,31172.0,0.13632608]
[1609823559584,0.2771,31187.0,31172.0,0.25426608]
[1609823559781,0.2771,31187.0,31173.0,4.9804]
[1609823560581,0.2771,31187.0,31172.0,0.11794]
[1609823560781,0.2771,31187.0,31175.0,3.6212]
[1609823561482,0.2771,31187.0,31176.0,0.13632608]
[1609823562485,0.2771,31187.0,31175.0,3.6212]
[1609823563284,0.13632608,31176.0,31175.0,3.6212]
[1609823565385,0.13632608,31176.0,31175.0,3.75752608]
[1609823565785,0.13632608,31176.0,31175.0,3.6212]